fUST/lending_fUST_20250513
["ID","MTS","AMOUNT","RATE_DAILY","PERIOD"]
[360917114,1747144245832,-400.0,0.00013972,2]
[360917116,1747144245842,-435.77,0.00013972,2]
[360917118,1747144245852,-400.0,0.00013972,2]
[360917120,1747144245861,-400.0,0.00013972,2]
[360917122,1747144245871,-400.0,0.00013972,2]
[360917125,1747144245882,-400.0,0.00013972,2]
[360917153,1747144246144,-400.0,0.00013972,2]
[360917155,1747144246155,-400.0,0.00013972,2]
[360917157,1747144246165,-507.56,0.00013972,2]
[360917159,1747144246175,-400.0,0.00013972,2]
[360917161,1747144246184,-2294.63,0.00013972,2]
[360917164,1747144246195,-401.15484059,0.00013972,2]
[360917167,1747144246205,-400.0,0.00013972,2]
[360917170,1747144246214,-400.0,0.00013972,2]
[360917173,1747144246224,-588.96,0.00013972,2]
[360917176,1747144246234,-1014.1,0.00013972,2]
[360917179,1747144246245,-400.0,0.00013972,2]
[360917181,1747144246254,-400.0,0.00013972,2]
[360917183,1747144246263,-520.47,0.00013972,2]
[360917185,1747144246273,-400.0,0.00013972,2]
[360917187,1747144246282,-950.31,0.00013972,2]
[360917189,1747144246292,-400.0,0.00013972,2]
[360917191,1747144246302,-479.6,0.00013972,2]
[360917194,1747144246311,-457.03698808,0.00013972,2]
[360917196,1747144246321,-400.0,0.00013972,2]
[360917198,1747144246330,-400.0,0.00013972,2]
[360917200,1747144246339,-400.0,0.00013972,2]
[360917202,1747144246348,-713.63,0.00013972,2]
[360917204,1747144246359,-400.0,0.00013972,2]
[360917206,1747144246368,-505.73193461,0.00013972,2]
[360917208,1747144246377,-300.0,0.00013972,2]
[360917210,1747144246387,-400.0,0.00013972,2]
[360917212,1747144246397,-400.0,0.00013972,2]
[360917214,1747144246406,-400.0,0.00013972,2]
[360917216,1747144246415,-469.73,0.00013972,2]
[360917218,1747144246425,-594.45,0.00013972,2]
[360917220,1747144246434,-400.0,0.00013972,2]
[360917222,1747144246443,-1126.26,0.00013972,2]
[360917224,1747144246453,-400.0,0.00013972,2]
[360917226,1747144246462,-400.0,0.00013972,2]
[360917228,1747144246471,-689.77,0.00013972,2]
[360917230,1747144246481,-400.0,0.00013972,2]
[360917232,1747144246491,-400.0,0.00013972,2]
[360917234,1747144246500,-400.0,0.00013972,2]
[360917236,1747144246510,-400.0,0.00013972,2]
[360917238,1747144246519,-400.0,0.00013972,2]
[360917240,1747144246529,-525.09,0.00013972,2]
[360917242,1747144246539,-817.61,0.00013972,2]
[360917244,1747144246548,-400.0,0.00013972,2]
[360917246,1747144246557,-400.0,0.00013972,2]
[360917248,1747144246566,-400.0,0.00013972,2]
[360917250,1747144246576,-1025.11,0.00013972,2]
[360917252,1747144246586,-400.0,0.00013972,2]
[360917254,1747144246595,-400.0,0.00013972,2]
[360917256,1747144246605,-400.0,0.00013972,2]
[360917258,1747144246614,-455.04,0.00013972,2]
[360917260,1747144246624,-400.0,0.00013972,2]
[360917262,1747144246633,-400.0,0.00013972,2]
[360917264,1747144246644,-48.31746018,0.00013972,2]
[360917316,1747144247108,-297.374426,0.00013698,2]
[360917318,1747144247118,-297.374426,0.00013698,2]
[360917320,1747144247127,-400.0,0.00013698,2]
[360917322,1747144247136,-297.374426,0.00013698,2]
[360917324,1747144247147,-351.68253982,0.00013972,2]
[360917326,1747144247159,-432.71,0.00013972,2]
[360917328,1747144247168,-400.0,0.00013972,2]
[360917330,1747144247177,-600.58,0.00013972,2]
[360917332,1747144247187,-505.202096,0.00013972,2]
[360917334,1747144247196,-370.6303717,0.00013972,2]
[360917337,1747144247208,-134.5717243,0.00013972,2]
[360917339,1747144247217,-410.09670689,0.00013972,2]
[360917342,1747144247241,-297.374426,0.00013698,2]
[360917344,1747144247250,-95.10538911,0.00013972,2]
[360917346,1747144247260,-210.96226806,0.00013972,2]
[360917348,1747144247270,-14.70364428,0.00013972,2]
[360917350,1747144247282,-490.49845172,0.00013972,2]
[360917353,1747144247292,-505.202096,0.00013972,2]
[360917354,1747144247301,-505.202091,0.00013972,2]
[360917357,1747144247311,-400.0,0.00013972,2]
[360917359,1747144247321,-400.0,0.00013972,2]
[360917361,1747144247331,-207.38524777,0.00013972,2]
[360917363,1747144247340,-713.5,0.00013972,2]
[360917365,1747144247350,-400.0,0.00013972,2]
[360917367,1747144247359,-400.0,0.00013972,2]
[360917369,1747144247368,-224.73162541,0.00013972,2]
[360917371,1747144247378,-400.0,0.00013972,2]
[360917373,1747144247389,-400.0,0.00013972,2]
[360917375,1747144247398,-400.0,0.00013972,2]
[360917377,1747144247408,-400.0,0.00013972,2]
[360917379,1747144247418,-400.0,0.00013972,2]
[360917381,1747144247427,-400.0,0.00013972,2]
[360917383,1747144247437,-883.08,0.00013972,2]
[360917385,1747144247446,-400.0,0.00013972,2]
[360917387,1747144247456,-400.0,0.00013972,2]
[360917389,1747144247465,-636.6,0.00013972,2]
[360917391,1747144247475,-400.0,0.00013972,2]
[360917393,1747144247485,-505.21,0.00013972,2]
[360917395,1747144247494,-400.0,0.00013972,2]
[360917397,1747144247504,-1729.45,0.00013972,2]
[360917399,1747144247513,-400.0,0.00013972,2]
[360917401,1747144247523,-473.1,0.00013972,2]
[360917403,1747144247533,-715.29,0.00013972,2]
[360917405,1747144247542,-400.0,0.00013972,2]
[360917407,1747144247551,-400.0,0.00013972,2]
[360917409,1747144247561,-111.91307998,0.00013972,2]
[360917411,1747144247574,-288.08692002,0.00013972,2]
[360917413,1747144247583,-400.0,0.00013972,2]
[360917415,1747144247593,-814.6179353,0.00013972,2]
[360917643,1747144626532,2548.45,8.02e-05,2]
[360917662,1747145227448,-580.80038702,0.00012161,2]
[360917663,1747145237242,-4419.19961298,0.00012161,2]
[360917664,1747145237263,-1135.4487133,0.00012284,2]
[360917665,1747145237284,-249.2322551,0.00012316,2]
[360917666,1747145237308,-274.6360475,0.00012472,2]
[360917667,1747145237332,-300.0,0.00012692,2]
[360917668,1747145237354,-461.82565991,0.00012693,2]
[360917669,1747145248090,-1530.44806848,0.00012566,2]
[360917670,1747145250082,-3469.55193152,0.00012566,2]
[360917671,1747145250104,-738.17434009,0.00012693,2]
[360917672,1747145250125,-300.0,0.00012693,2]
[360917673,1747145250145,-300.0,0.00012694,2]
[360917674,1747145250166,-300.0,0.00012694,2]
[360917675,1747145250189,-300.0,0.00012694,2]
[360917676,1747145250212,-500.0,0.00012696,2]
[360917677,1747145250232,-140.49383211,0.00012696,2]
[360917685,1747145364111,-1753.37265471,0.00012184,2]
[360917691,1747145429887,5000.0,0.0002,120]
[360917709,1747145431877,-394.61855036,0.00012184,2]
[360917710,1747145431887,-152.47069356,0.00012557,2]
[360917711,1747145431896,-5000.0,0.00012569,2]
[360917712,1747145431906,-1200.0,0.00012693,2]
[360917713,1747145431916,-300.0,0.00012694,2]
[360917714,1747145431925,-300.0,0.00012694,2]
[360917715,1747145431935,-300.0,0.00012694,2]
[360917716,1747145431944,-300.0,0.00012694,2]
[360917717,1747145431953,-499.99999999,0.00012695,2]
[360917718,1747145431964,-203.18994644,0.00012695,2]
[360917719,1747145431973,-500.0,0.00012695,2]
[360917720,1747145431984,-500.0,0.00012695,2]
[360917721,1747145431993,-500.0,0.00012695,2]
[360917722,1747145432003,-421.09077453,0.00012695,2]
[360917723,1747145432012,-500.0,0.00012695,2]
[360917724,1747145432021,-500.0,0.00012695,2]
[360917725,1747145432031,-16156.8136042,0.00012697,2]
[360917726,1747145432040,-180.62418459,0.00013208,2]
[360917727,1747145432050,-500.0,0.00013597,2]
[360917728,1747145432059,-497.55863785,0.00013597,2]
[360917729,1747145432069,-500.0,0.00013597,2]
[360917730,1747145432079,-402.71846949,0.00013597,2]
[360917731,1747145432088,-481.95686505,0.00013597,2]
[360917732,1747145432098,-181.90292864,0.00013597,2]
[360917733,1747145432108,-835.64759772,0.00013598,2]
[360917734,1747145432118,-1123.58130436,0.00013598,2]
[360917735,1747145432127,-399.63013437,0.00013673,2]
[360917736,1747145432136,-500.0,0.00013673,2]
[360917737,1747145432145,-500.0,0.00013673,2]
[360917738,1747145432155,-500.0,0.00013673,2]
[360917739,1747145432164,-152.79650987,0.00013673,2]
[360917740,1747145432175,-500.0,0.00013673,2]
[360917741,1747145432185,-266.69124203,0.00013673,2]
[360917742,1747145432194,-500.0,0.00013673,2]
[360917743,1747145432203,-500.0,0.00013673,2]
[360917744,1747145432216,-500.0,0.00013673,2]
[360917745,1747145432226,-500.0,0.00013673,2]
[360917746,1747145432236,-409.23235196,0.00013673,2]
[360917747,1747145432246,-500.0,0.00013673,2]
[360917748,1747145432255,-500.0,0.00013673,2]
[360917749,1747145432265,-500.0,0.00013673,2]
[360917750,1747145432274,-500.0,0.00013673,2]
[360917751,1747145432283,-500.0,0.00013673,2]
[360917752,1747145432293,-500.0,0.00013673,2]
[360917753,1747145432303,-500.0,0.00013673,2]
[360917754,1747145432312,-500.0,0.00013673,2]
[360917755,1747145432321,-464.15449355,0.00013673,2]
[360917756,1747145432333,-35.84550645,0.00013673,2]
[360917757,1747145432343,-500.0,0.00013673,2]
[360917758,1747145432352,-500.0,0.00013673,2]
[360917759,1747145432361,-500.0,0.00013673,2]
[360917760,1747145432371,-500.0,0.00013673,2]
[360917761,1747145432380,-151.0,0.00013698,2]
[360917762,1747145432389,-151.0,0.00013698,2]
[360917763,1747145432399,-151.0,0.00013698,2]
[360917764,1747145432408,-400.0,0.00013698,2]
[360917765,1747145432417,-400.0,0.00013698,2]
[360917766,1747145432427,-422.35,0.00013698,2]
[360917767,1747145432436,-400.0,0.00013698,2]
[360917768,1747145432445,-1955.06,0.00013698,2]
[360917769,1747145432455,-400.35449868,0.00013698,2]
[360917770,1747145432465,-400.0,0.00013698,2]
[360917771,1747145432475,-439.47,0.00013698,2]
[360917772,1747145432485,-355.17398895,0.00013698,2]
[360917773,1747145432494,-791.01,0.00013698,2]
[360917774,1747145432504,-400.0,0.00013698,2]
[360917775,1747145432513,-186.49213864,0.00013698,2]
[360917776,1747145432522,-373.2008994,0.00013698,2]
[360917777,1747145432531,-400.0,0.00013698,2]
[360917778,1747145432542,-400.0,0.00013698,2]
[360917779,1747145432552,-400.0,0.00013698,2]
[360917780,1747145432563,-400.0,0.00013698,2]
[360917781,1747145432572,-400.0,0.00013698,2]
[360917782,1747145432582,-400.0,0.00013698,2]
[360917783,1747145432592,-400.0,0.00013698,2]
[360917784,1747145432602,-400.0,0.00013698,2]
[360917785,1747145432611,-400.0,0.00013698,2]
[360917786,1747145432620,-400.0,0.00013698,2]
[360917787,1747145432630,-400.0,0.00013698,2]
[360917788,1747145432640,-400.0,0.00013698,2]
[360917789,1747145432649,-1601.71,0.00013698,2]
[360917790,1747145432659,-400.0,0.00013698,2]
[360917791,1747145432668,-791.44,0.00013698,2]
[360917792,1747145432677,-400.0,0.00013698,2]
[360917793,1747145432687,-400.0,0.00013698,2]
[360917794,1747145432697,-400.0,0.00013698,2]
[360917795,1747145432709,-400.0,0.00013698,2]
[360917796,1747145432718,-400.0,0.00013698,2]
[360917797,1747145432728,-400.0,0.00013698,2]
[360917798,1747145432738,-400.0,0.00013698,2]
[360917799,1747145432747,-683.29,0.00013698,2]
[360917800,1747145432757,-691.38,0.00013698,2]
[360917801,1747145432766,-403.91,0.00013698,2]
[360917802,1747145432776,-413.92,0.00013698,2]
[360917803,1747145432786,-697.96,0.00013698,2]
[360917804,1747145432796,-625.57,0.00013698,2]
[360917805,1747145432806,-400.0,0.00013698,2]
[360917806,1747145432815,-400.0,0.00013698,2]
[360917807,1747145432825,-400.0,0.00013698,2]
[360917808,1747145432834,-400.0,0.00013698,2]
[360917809,1747145432843,-400.0,0.00013698,2]
[360917810,1747145432852,-400.0,0.00013698,2]
[360917811,1747145432862,-400.0,0.00013698,2]
[360917812,1747145432871,-271.15187498,0.00013698,2]
[360917813,1747145432881,-357.85136517,0.00013698,2]
[360917814,1747145432890,-400.0,0.00013698,2]
[360917815,1747145432899,-400.0,0.00013698,2]
[360917816,1747145432908,-400.0,0.00013698,2]
[360917817,1747145432917,-400.0,0.00013698,2]
[360917818,1747145432927,-151.0,0.00013698,2]
[360917819,1747145432936,-400.0,0.00013698,2]
[360917820,1747145432946,-400.0,0.00013698,2]
[360917821,1747145432955,-400.0,0.00013698,2]
[360917822,1747145432969,-654.04,0.00013698,2]
[360917823,1747145432979,-400.0,0.00013698,2]
[360917824,1747145432988,-400.0,0.00013698,2]
[360917825,1747145432998,-1430.44,0.00013698,2]
[360917826,1747145433007,-524.28,0.00013698,2]
[360917827,1747145433017,-400.0,0.00013698,2]
[360917828,1747145433026,-400.0,0.00013698,2]
[360917829,1747145433036,-432.55,0.00013698,2]
[360917830,1747145433045,-400.0,0.00013698,2]
[360917831,1747145433055,-574.66,0.00013698,2]
[360917832,1747145433064,-400.0,0.00013698,2]
[360917833,1747145433074,-400.0,0.00013698,2]
[360917834,1747145433084,-400.0,0.00013698,2]
[360917835,1747145433094,-400.0,0.00013698,2]
[360917836,1747145433103,-400.0,0.00013698,2]
[360917837,1747145433112,-400.0,0.00013698,2]
[360917838,1747145433123,-400.0,0.00013698,2]
[360917839,1747145433132,-400.0,0.00013698,2]
[360917840,1747145433142,-400.0,0.00013698,2]
[360917841,1747145433151,-655.68,0.00013698,2]
[360917842,1747145433162,-400.0,0.00013698,2]
[360917843,1747145433171,-1617.8,0.00013698,2]
[360917844,1747145433181,-400.0,0.00013698,2]
[360917845,1747145433191,-400.0,0.00013698,2]
[360917846,1747145433201,-400.0,0.00013698,2]
[360917847,1747145433214,-400.0,0.00013698,2]
[360917848,1747145433224,-400.0,0.00013698,2]
[360917849,1747145433234,-695.21,0.00013698,2]
[360917850,1747145433244,-400.0,0.00013698,2]
[360917851,1747145433253,-912.53,0.00013698,2]
[360917852,1747145433263,-400.0,0.00013698,2]
[360917853,1747145433273,-400.0,0.00013698,2]
[360917854,1747145433283,-1210.84,0.00013698,2]
[360917855,1747145433293,-401.73116119,0.00013698,2]
[360917856,1747145433303,-400.0,0.00013698,2]
[360917857,1747145433312,-400.0,0.00013698,2]
[360917858,1747145433322,-400.0,0.00013698,2]
[360917859,1747145433332,-400.0,0.00013698,2]
[360917860,1747145433341,-400.0,0.00013698,2]
[360917861,1747145433351,-410.69,0.00013698,2]
[360917862,1747145433361,-753.4,0.00013698,2]
[360917863,1747145433371,-1181.94,0.00013698,2]
[360917864,1747145433380,-400.0,0.00013698,2]
[360917865,1747145433390,-4609.56,0.00013698,2]
[360917866,1747145433400,-400.0,0.00013698,2]
[360917867,1747145433410,-400.0,0.00013698,2]
[360917868,1747145433420,-400.0,0.00013698,2]
[360917869,1747145433429,-1366.98,0.00013698,2]
[360917870,1747145433439,-1084.67,0.00013698,2]
[360917871,1747145433450,-1725.12,0.00013698,2]
[360917872,1747145433461,-400.0,0.00013698,2]
[360917873,1747145433471,-464.42,0.00013698,2]
[360917874,1747145433481,-400.0,0.00013698,2]
[360917875,1747145433492,-549.3,0.00013698,2]
[360917876,1747145433502,-422.13,0.00013698,2]
[360917877,1747145433512,-538.75442704,0.00013698,2]
[360917878,1747145433522,-400.0,0.00013698,2]
[360917879,1747145433533,-400.0,0.00013698,2]
[360917880,1747145433545,-400.0,0.00013698,2]
[360917881,1747145433557,-151.0,0.00013698,2]
[360917882,1747145433567,-500.0,0.00013698,2]
[360917883,1747145433577,-562.98,0.00013698,2]
[360917884,1747145433589,-151.0,0.00013698,2]
[360917885,1747145433599,-686.41,0.00013698,2]
[360917886,1747145433609,-400.0,0.00013698,2]
[360917887,1747145433620,-2140.1,0.00013698,2]
[360917888,1747145433630,-704.07,0.00013698,2]
[360917889,1747145433640,-823.0,0.00013698,2]
[360917890,1747145433650,-184.348497,0.00013698,2]
[360917891,1747145433660,-706.14,0.00013698,2]
[360917892,1747145433670,-400.0,0.00013698,2]
[360917893,1747145433680,-184.348497,0.00013698,2]
[360917894,1747145433690,-797.01,0.00013698,2]
[360917895,1747145433699,-429.03,0.00013698,2]
[360917896,1747145433713,-400.0,0.00013698,2]
[360917897,1747145433723,-400.0,0.00013698,2]
[360917898,1747145433733,-400.0,0.00013698,2]
[360917899,1747145433742,-151.0,0.00013698,2]
[360917900,1747145433752,-284.534284,0.00013698,2]
[360917901,1747145433762,-1196.86,0.00013698,2]
[360917902,1747145433771,-1119.87,0.00013698,2]
[360917903,1747145433782,-284.534284,0.00013698,2]
[360917904,1747145433791,-400.0,0.00013698,2]
[360917905,1747145433801,-400.0,0.00013698,2]
[360917906,1747145433812,-400.0,0.00013698,2]
[360917907,1747145433821,-151.0,0.00013698,2]
[360917908,1747145433831,-400.0,0.00013698,2]
[360917909,1747145433841,-400.0,0.00013698,2]
[360917910,1747145433851,-151.0,0.00013698,2]
[360917911,1747145433860,-1069.13,0.00013698,2]
[360917912,1747145433870,-889.2,0.00013698,2]
[360917913,1747145433880,-734.17,0.00013698,2]
[360917914,1747145433889,-400.0,0.00013698,2]
[360917915,1747145433899,-3312.24,0.00013698,2]
[360917916,1747145433909,-400.0,0.00013698,2]
[360917917,1747145433918,-400.0,0.00013698,2]
[360917918,1747145433927,-238.64824269,0.00013698,2]
[360917919,1747145433937,-400.0,0.00013698,2]
[360917920,1747145433947,-400.0,0.00013698,2]
[360917921,1747145433960,-1252.23,0.00013698,2]
[360917922,1747145433969,-400.0,0.00013698,2]
[360917923,1747145433979,-1382.45,0.00013698,2]
[360917924,1747145433989,-400.0,0.00013698,2]
[360917925,1747145433999,-400.0,0.00013698,2]
[360917926,1747145434008,-2127.25,0.00013698,2]
[360917927,1747145434017,-400.0,0.00013698,2]
[360917928,1747145434027,-400.0,0.00013698,2]
[360917929,1747145434037,-400.0,0.00013698,2]
[360917930,1747145434047,-716.73,0.00013698,2]
[360917931,1747145434056,-598.29,0.00013698,2]
[360917932,1747145434066,-729.77,0.00013698,2]
[360917933,1747145434075,-439.95,0.00013698,2]
[360917934,1747145434085,-400.0,0.00013698,2]
[360917935,1747145434094,-567.37,0.00013698,2]
[360917936,1747145434103,-400.0,0.00013698,2]
[360917937,1747145434113,-435.6,0.00013698,2]
[360917938,1747145434122,-2465.35,0.00013698,2]
[360917939,1747145434131,-833.94,0.00013698,2]
[360917940,1747145434140,-408.05,0.00013698,2]
[360917941,1747145434149,-400.0,0.00013698,2]
[360917942,1747145434159,-400.0,0.00013698,2]
[360917943,1747145434169,-400.0,0.00013698,2]
[360917944,1747145434179,-1982.94,0.00013698,2]
[360917945,1747145434188,-1432.5,0.00013698,2]
[360917946,1747145434205,-400.0,0.00013698,2]
[360917947,1747145434218,-151.0,0.00013698,2]
[360917948,1747145434227,-400.0,0.00013698,2]
[360917949,1747145434237,-151.0,0.00013698,2]
[360917950,1747145434246,-400.0,0.00013698,2]
[360917951,1747145434256,-400.0,0.00013698,2]
[360917952,1747145434266,-400.0,0.00013698,2]
[360917953,1747145434276,-400.0,0.00013698,2]
[360917954,1747145434286,-701.89,0.00013698,2]
[360917955,1747145434296,-2867.86,0.00013698,2]
[360917956,1747145434305,-486.74,0.00013698,2]
[360917957,1747145434315,-400.0,0.00013698,2]
[360917958,1747145434324,-1033.18,0.00013698,2]
[360917959,1747145434334,-420.56,0.00013698,2]
[360917960,1747145434343,-745.06,0.00013698,2]
[360917961,1747145434352,-1429.76,0.00013698,2]
[360917962,1747145434361,-400.0,0.00013698,2]
[360917963,1747145434371,-400.0,0.00013698,2]
[360917964,1747145434380,-1136.24,0.00013698,2]
[360917965,1747145434390,-400.0,0.00013698,2]
[360917966,1747145434399,-400.0,0.00013698,2]
[360917967,1747145434408,-261.24,0.00013698,2]
[360917968,1747145434417,-671.09,0.00013698,2]
[360917969,1747145434426,-825.75,0.00013698,2]
[360917970,1747145434435,-6532.23,0.00013698,2]
[360917971,1747145434445,-400.0,0.00013698,2]
[360917972,1747145434455,-2476.0,0.00013698,2]
[360917973,1747145434467,-913.47,0.00013698,2]
[360917974,1747145434477,-672.32,0.00013698,2]
[360917975,1747145434488,-400.0,0.00013698,2]
[360917976,1747145434499,-728.03,0.00013698,2]
[360917977,1747145434509,-400.0,0.00013698,2]
[360917978,1747145434519,-6075.11,0.00013698,2]
[360917979,1747145434529,-151.0,0.00013698,2]
[360917980,1747145434538,-400.0,0.00013698,2]
[360917981,1747145434552,-400.0,0.00013698,2]
[360917982,1747145434561,-400.0,0.00013698,2]
[360917983,1747145434571,-400.0,0.00013698,2]
[360917984,1747145434580,-554.26,0.00013698,2]
[360917985,1747145434591,-400.0,0.00013698,2]
[360917986,1747145434600,-400.0,0.00013698,2]
[360917987,1747145434610,-1918.68,0.00013698,2]
[360917988,1747145434620,-1262.95,0.00013698,2]
[360917989,1747145434630,-551.46,0.00013698,2]
[360917990,1747145434640,-400.0,0.00013698,2]
[360917991,1747145434650,-1050.97,0.00013698,2]
[360917992,1747145434659,-400.0,0.00013698,2]
[360917993,1747145434669,-400.0,0.00013698,2]
[360917994,1747145434679,-1168.9,0.00013698,2]
[360917995,1747145434689,-400.0,0.00013698,2]
[360917996,1747145434698,-400.0,0.00013698,2]
[360917997,1747145434709,-400.0,0.00013698,2]
[360917998,1747145434719,-535.07,0.00013698,2]
[360917999,1747145434729,-398.07428028,0.00013698,2]
[360918000,1747145434738,-400.0,0.00013698,2]
[360918001,1747145434747,-400.0,0.00013698,2]
[360918002,1747145434757,-644.07,0.00013698,2]
[360918003,1747145434766,-840.2,0.00013698,2]
[360918004,1747145434776,-881.17,0.00013698,2]
[360918005,1747145434786,-400.0,0.00013698,2]
[360918006,1747145434796,-400.0,0.00013698,2]
[360918007,1747145434805,-400.0,0.00013698,2]
[360918008,1747145434815,-400.0,0.00013698,2]
[360918009,1747145434826,-400.0,0.00013698,2]
[360918010,1747145434836,-400.0,0.00013698,2]
[360918011,1747145434845,-400.0,0.00013698,2]
[360918012,1747145434854,-1084.08,0.00013698,2]
[360918013,1747145434863,-747.63,0.00013698,2]
[360918014,1747145434872,-400.0,0.00013698,2]
[360918015,1747145434882,-1000.0,0.00013698,2]
[360918016,1747145434891,-467.63,0.00013698,2]
[360918017,1747145434900,-266.38857307,0.00013698,2]
[360918018,1747145434910,-400.0,0.00013698,2]
[360918019,1747145434919,-400.0,0.00013698,2]
[360918020,1747145434928,-400.0,0.00013698,2]
[360918021,1747145434938,-2178.97,0.00013698,2]
[360918022,1747145434947,-400.0,0.00013698,2]
[360918023,1747145434958,-653.93,0.00013698,2]
[360918024,1747145434967,-771.2,0.00013698,2]
[360918025,1747145434976,-400.0,0.00013698,2]
[360918026,1747145434986,-400.0,0.00013698,2]
[360918027,1747145434995,-523.05217977,0.00013698,2]
[360918028,1747145435004,-400.0,0.00013698,2]
[360918029,1747145435014,-427.3,0.00013698,2]
[360918030,1747145435023,-710.47,0.00013698,2]
[360918031,1747145435032,-465.4124812,0.00013698,2]
[360918032,1747145435041,-400.0,0.00013698,2]
[360918033,1747145435050,-400.0,0.00013698,2]
[360918034,1747145435060,-268.099541,0.00013698,2]
[360918035,1747145435069,-2624.2,0.00013698,2]
[360918036,1747145435079,-268.099541,0.00013698,2]
[360918037,1747145435088,-470.43,0.00013698,2]
[360918038,1747145435097,-400.0,0.00013698,2]
[360918039,1747145435106,-400.0,0.00013698,2]
[360918040,1747145435115,-885.35,0.00013698,2]
[360918041,1747145435124,-268.099541,0.00013698,2]
[360918042,1747145435134,-652.35,0.00013698,2]
[360918043,1747145435143,-268.099541,0.00013698,2]
[360918044,1747145435152,-433.07,0.00013698,2]
[360918045,1747145435162,-400.0,0.00013698,2]
[360918046,1747145435172,-558.78,0.00013698,2]
[360918047,1747145435181,-400.0,0.00013698,2]
[360918048,1747145435190,-400.0,0.00013698,2]
[360918049,1747145435200,-400.0,0.00013698,2]
[360918050,1747145435210,-400.0,0.00013698,2]
[360918051,1747145435219,-151.0,0.00013698,2]
[360918052,1747145435229,-400.0,0.00013698,2]
[360918053,1747145435238,-151.0,0.00013698,2]
[360918054,1747145435247,-400.0,0.00013698,2]
[360918055,1747145435257,-737.94,0.00013698,2]
[360918056,1747145435266,-400.0,0.00013698,2]
[360918057,1747145435276,-644.35,0.00013698,2]
[360918058,1747145435286,-400.0,0.00013698,2]
[360918059,1747145435297,-400.0,0.00013698,2]
[360918060,1747145435307,-603.12,0.00013698,2]
[360918061,1747145435316,-400.0,0.00013698,2]
[360918062,1747145435326,-475.9,0.00013698,2]
[360918063,1747145435335,-400.0,0.00013698,2]
[360918064,1747145435344,-400.0,0.00013698,2]
[360918065,1747145435354,-863.34,0.00013698,2]
[360918066,1747145435363,-400.0,0.00013698,2]
[360918067,1747145435372,-433.1,0.00013698,2]
[360918068,1747145435381,-400.0,0.00013698,2]
[360918069,1747145435390,-400.0,0.00013698,2]
[360918070,1747145435400,-330.70669063,0.00013698,2]
[360918071,1747145435425,-69.29330937,0.00013698,2]
[360918072,1747145435434,-400.0,0.00013698,2]
[360918073,1747145435443,-443.07,0.00013698,2]
[360918074,1747145435453,-433.74,0.00013698,2]
[360918075,1747145435463,-151.0,0.00013698,2]
[360918076,1747145435472,-400.0,0.00013698,2]
[360918077,1747145435482,-400.0,0.00013698,2]
[360918078,1747145435491,-400.0,0.00013698,2]
[360918079,1747145435501,-1630.97,0.00013698,2]
[360918080,1747145435510,-459.45220028,0.00013698,2]
[360918081,1747145435521,-400.0,0.00013698,2]